[Event "Festival Groningen-A 2024"]
[Site "Groningen"]
[Date "2024.12.28"]
[Round "7.25"]
[White "Van Roon, Sjoerd"]
[Black "Khoo-Thwe, Louis"]
[Result "0-1"]
[ECO "C45"]
[WhiteElo "2285"]
[BlackElo "2124"]
[Annotator "RC"]
[PlyCount "106"]
[EventDate "2024.12.21"]
[EventType "swiss"]
[EventCountry "NED"]
[SourceTitle "playchess.com"]
[Source "ChessBase"]
[SourceQuality "1"]
[TimeControl "40/5400+30:1800+30"]

1. e4 {[%emt 0:00:02]} e5 {[%emt 0:00:07]} 2. Nf3 {[%emt 0:00:03]} Nc6 {[%emt 0:00:07]} 3. d4 {[%emt 0:00:02]} exd4 {[%emt 0:00:10]} 4. Nxd4 {[%emt 0:00:02]} Bc5 {[%emt 0:00:10]} 5. Nb3 {[%emt 0:00:04]} Bb6 {[%emt 0:00:06]} 6. Nc3 {[%emt 0:00:05]} Nge7 {[%emt 0:00:07]} 7. Qe2 {[%emt 0:00:40]} O-O {[%emt 0:00:21]} 8. Be3 {[%emt 0:01:08]} d6 {[%emt 0:00:27]} 9. O-O-O {[%emt 0:00:18]} f5 {[%emt 0:00:18]} 10. f4 {[%emt 0:00:06]} fxe4 {[%emt 0:02:51]} 11. g3 {[%emt 0:01:03]} Bxe3+ {[%emt 0:14:00]} 12. Qxe3 {[%emt 0:00:40]} Nf5 {[%emt 0:05:53]} 13. Qxe4 {[%emt 0:00:22]} Re8 {[%emt 0:01:17]} 14. Qf3 {[%emt 0:09:33]} Ne3 {[%emt 0:02:20]} 15. Re1 {[%emt 0:00:35]} Bg4 {[%emt 0:03:30]} 16. Qf2 {[%emt 0:00:07]} Nxf1 {[%emt 0:00:29]} 17. Rxe8+ {[%emt 0:01:39]} Qxe8 {[%emt 0:00:07]} 18. Rxf1 {[%emt 0:00:08]} Qf7 {[%emt 0:08:04]} 19. Re1 {[%emt 0:01:21]} Re8 {[%emt 0:02:09]} 20. Rxe8+ {[%emt 0:06:35]} Qxe8 {[%emt 0:00:08]} 21. Kd2 {[%emt 0:00:06]} Qh5 {[%emt 0:08:44]} 22. h4 {[%emt 0:03:13]} Be6 {[%emt 0:02:15]} 23. Qe3 {[%emt 0:06:21]} Kf7 {[%emt 0:02:02]} 24. Nd4 {[%emt 0:04:04]} Nxd4 {[%emt 0:01:30]} 25. Qxd4 {[%emt 0:00:06]} Qf3 {[%emt 0:05:33]} 26. Qxa7 {[%emt 0:15:06]} Qxg3 {[%emt 0:02:34]} 27. Ne2 {[%emt 0:01:34]} Qg2 {[%emt 0:02:21]} 28. Qa5 {[%emt 0:02:18]} Qd5+ {[%emt 0:08:22]} 29. Qxd5 {[%emt 0:00:06]} Bxd5 {[%emt 0:00:06]} 30. a4 {[%emt 0:02:29]} c5 {[%emt 0:03:08]} 31. a5 {[%emt 0:01:49]} Ke6 {[%emt 0:01:27]} 32. Ng3 {[%emt 0:03:29]} Bg2 {[%emt 0:04:42]} 33. Ke3 {[%emt 0:06:42]} g6 {[%emt 0:06:00]} 34. c3 {[%emt 0:07:01]} d5 {[%emt 0:03:04]} 35. Kd3 {[%emt 0:03:15]} Kd6 {[%emt 0:02:17]} 36. b4 {[%emt 0:05:00]} Kc6 {[%emt 0:01:01]} 37. h5 {[%emt 0:12:05]} Kb5 {[%emt 0:03:27]} 38. bxc5 {[%emt 0:02:28]} Kxc5 {[%emt 0:00:09]} 39. h6 {[%emt 0:00:22]} Bh3 {[%emt 0:00:51]} 40. Ne2 {[%emt 0:04:38]} Bf1 {[%emt 0:02:15]} 41. Kd2 {[%emt 0:30:07]} Bxe2 {[%emt 0:30:39]} 42. Kxe2 {[%emt 0:00:05]} Kc4 {[%emt 0:00:15]} 43. Kd2 {[%emt 0:01:18]} d4 {[%emt 0:00:11]} 44. cxd4 {[%emt 0:01:52]} Kxd4 {[%emt 0:00:06]} 45. Kc2 {[%emt 0:00:00]} Ke4 {[%emt 0:00:00]} 46. Kc3 {[%emt 0:00:00]} Kxf4 {[%emt 0:00:00]} 47. Kd4 {[%emt 0:00:00]} g5 {[%emt 0:00:00]} 48. Kc5 {[%emt 0:00:00]} g4 {[%emt 0:00:00]} 49. Kb6 {[%emt 0:00:00]} g3 {[%emt 0:00:00]} 50. Kxb7 {[%emt 0:00:00]} g2 {[%emt 0:00:00]} 51. a6 {[%emt 0:00:00]} g1=Q {[%emt 0:00:00]} 52. a7 {[%emt 0:00:00]} Kg5 {[%emt 0:00:00]} 53. a8=Q {[%emt 0:00:00]} Qg2+ {[%emt 0:00:00]} 0-1

[Event "Festival Groningen-A 2024"]
[Site "Groningen"]
[Date "2024.12.28"]
[Round "7.26"]
[White "Ponnio, Toni"]
[Black "Wempe, Joost"]
[Result "1/2-1/2"]
[ECO "E04"]
[WhiteElo "2111"]
[BlackElo "2233"]
[Annotator "RC"]
[PlyCount "98"]
[EventDate "2024.12.21"]
[EventType "swiss"]
[EventCountry "NED"]
[SourceTitle "playchess.com"]
[Source "ChessBase"]
[SourceQuality "1"]
[TimeControl "40/5400+30:1800+30"]

1. d4 {[%emt 0:00:02]} Nf6 {[%emt 0:00:08]} 2. c4 {[%emt 0:00:08]} e6 {[%emt 0:00:08]} 3. Nf3 {[%emt 0:00:10]} d5 {[%emt 0:00:39]} 4. g3 {[%emt 0:00:11]} Bb4+ {[%emt 0:00:10]} 5. Nbd2 {[%emt 0:00:07]} dxc4 {[%emt 0:04:58]} 6. Bg2 {[%emt 0:00:07]} b5 {[%emt 0:02:46]} 7. O-O {[%emt 0:00:14]} a5 {[%emt 0:08:33]} 8. a4 {[%emt 0:05:36]} c6 {[%emt 0:02:12]} 9. Qc2 {[%emt 0:23:30]} O-O {[%emt 0:03:30]} 10. b3 {[%emt 0:02:06]} cxb3 {[%emt 0:00:53]} 11. Nxb3 {[%emt 0:00:12]} bxa4 {[%emt 0:11:50]} 12. Rxa4 {[%emt 0:02:55]} Ba6 {[%emt 0:03:02]} 13. Rd1 {[%emt 0:07:32]} Bb5 {[%emt 0:01:17]} 14. Ra2 {[%emt 0:00:15]} h6 {[%emt 0:09:40]} 15. Ba3 {[%emt 0:16:24]} Na6 {[%emt 0:18:21]} 16. Ne5 {[%emt 0:08:13]} Qd6 {[%emt 0:16:41]} 17. Nxa5 {[%emt 0:19:11]} Bxa3 {[%emt 0:01:37]} 18. Nac4 {[%emt 0:00:06]} Qe7 {[%emt 0:06:24]} 19. Rxa3 {[%emt 0:00:20]} Nb4 {[%emt 0:00:23]} 20. Qb2 {[%emt 0:01:59]} Nbd5 {[%emt 0:00:18]} 21. Rda1 {[%emt 0:02:28]} Rxa3 {[%emt 0:01:38]} 22. Rxa3 {[%emt 0:00:08]} Bxc4 {[%emt 0:02:13]} 23. Nxc4 {[%emt 0:00:09]} c5 {[%emt 0:00:06]} 24. dxc5 {[%emt 0:01:06]} Qxc5 {[%emt 0:00:09]} 25. Ne5 {[%emt 0:01:46]} Rc8 {[%emt 0:00:48]} 26. Nd3 {[%emt 0:00:53]} Qc2 {[%emt 0:00:36]} 27. Qxc2 {[%emt 0:01:48]} Rxc2 {[%emt 0:00:07]} 28. Ra8+ {[%emt 0:00:15]} Kh7 {[%emt 0:00:05]} 29. Bf3 {[%emt 0:00:58]} g5 {[%emt 0:00:31]} 30. Ne5 {[%emt 0:01:55]} Kg7 {[%emt 0:00:55]} 31. Bxd5 {[%emt 0:01:08]} Rxe2 {[%emt 0:03:34]} 32. Bxe6 {[%emt 0:01:54]} Rxe5 {[%emt 0:00:06]} 33. Ba2 {[%emt 0:00:12]} Ne4 {[%emt 0:01:48]} 34. Ra7 {[%emt 0:00:19]} Rf5 {[%emt 0:00:10]} 35. Bb1 {[%emt 0:00:13]} Re5 {[%emt 0:00:11]} 36. Bxe4 {[%emt 0:00:55]} Rxe4 {[%emt 0:00:04]} 37. Ra6 {[%emt 0:00:07]} g4 {[%emt 0:00:17]} 38. Kg2 {[%emt 0:00:09]} Re2 {[%emt 0:01:00]} 39. Ra4 {[%emt 0:00:13]} h5 {[%emt 0:00:20]} 40. Ra5 {[%emt 0:00:16]} Kg6 {[%emt 0:00:05]} 41. Ra6+ {[%emt 0:31:35]} f6 {[%emt 0:31:39]} 42. Ra5 {[%emt 0:00:19]} Rb2 {[%emt 0:00:11]} 43. Rc5 {[%emt 0:00:08]} Rb3 {[%emt 0:00:10]} 44. h3 {[%emt 0:00:14]} f5 {[%emt 0:00:27]} 45. Rc6+ {[%emt 0:00:08]} Kg7 {[%emt 0:00:07]} 46. hxg4 {[%emt 0:00:06]} hxg4 {[%emt 0:00:13]} 47. Rd6 {[%emt 0:00:06]} Rb2 {[%emt 0:00:08]} 48. Rc6 {[%emt 0:00:06]} Kf7 {[%emt 0:00:06]} 49. Ra6 {[%emt 0:00:07]} Kg7 {[%emt 0:00:03]} 1/2-1/2

[Event "Festival Groningen-A 2024"]
[Site "Groningen"]
[Date "2024.12.28"]
[Round "7.27"]
[White "Sharma, Dinesh K."]
[Black "Spit, Vincent"]
[Result "1/2-1/2"]
[ECO "B85"]
[WhiteElo "2200"]
[BlackElo "2113"]
[Annotator "RC"]
[PlyCount "81"]
[EventDate "2024.12.21"]
[EventType "swiss"]
[EventCountry "NED"]
[SourceTitle "playchess.com"]
[Source "ChessBase"]
[SourceQuality "1"]
[TimeControl "40/5400+30:1800+30"]

1. e4 {[%emt 0:00:07]} c5 {[%emt 0:00:08]} 2. Nf3 {[%emt 0:00:08]} e6 {[%emt 0:00:08]} 3. d4 {[%emt 0:00:52]} cxd4 {[%emt 0:00:09]} 4. Nxd4 {[%emt 0:00:03]} Nc6 {[%emt 0:00:10]} 5. Nc3 {[%emt 0:00:14]} Qc7 {[%emt 0:00:09]} 6. Be2 {[%emt 0:00:24]} Nf6 {[%emt 0:00:41]} 7. O-O {[%emt 0:00:59]} Be7 {[%emt 0:00:53]} 8. Be3 {[%emt 0:01:27]} a6 {[%emt 0:00:20]} 9. f4 {[%emt 0:00:54]} d6 {[%emt 0:00:18]} 10. a4 {[%emt 0:00:18]} O-O {[%emt 0:00:44]} 11. Kh1 {[%emt 0:00:25]} Re8 {[%emt 0:00:48]} 12. Bf3 {[%emt 0:01:21]} Nxd4 {[%emt 0:05:22]} 13. Bxd4 {[%emt 0:03:00]} e5 {[%emt 0:00:54]} 14. Be3 {[%emt 0:00:16]} exf4 {[%emt 0:01:55]} 15. Bxf4 {[%emt 0:00:04]} Be6 {[%emt 0:01:09]} 16. Re1 {[%emt 0:15:14]} Nd7 {[%emt 0:06:54]} 17. Ne2 {[%emt 0:03:47]} Ne5 {[%emt 0:02:54]} 18. Nd4 {[%emt 0:00:03]} Bf6 {[%emt 0:04:25]} 19. c3 {[%emt 0:03:52]} Rad8 {[%emt 0:03:37]} 20. Nxe6 {[%emt 0:04:11]} Rxe6 {[%emt 0:04:25]} 21. Qc2 {[%emt 0:06:57]} Ng6 {[%emt 0:03:54]} 22. Be3 {[%emt 0:01:45]} Be5 {[%emt 0:02:07]} 23. Bg4 {[%emt 0:02:03]} Ree8 {[%emt 0:02:39]} 24. Qf2 {[%emt 0:01:17]} Qc4 {[%emt 0:04:11]} 25. Bb6 {[%emt 0:04:43]} Rb8 {[%emt 0:02:45]} 26. Qe2 {[%emt 0:06:49]} Qc6 {[%emt 0:02:56]} 27. a5 {[%emt 0:00:25]} Nf4 {[%emt 0:01:26]} 28. Qd2 {[%emt 0:01:53]} Qc4 {[%emt 0:05:36]} 29. Rad1 {[%emt 0:01:30]} h5 {[%emt 0:05:13]} 30. Bf3 {[%emt 0:00:49]} Qe6 {[%emt 0:08:54]} 31. g3 {[%emt 0:05:38]} Qh3 {[%emt 0:02:29]} 32. Qf2 {[%emt 0:10:05]} Ne6 {[%emt 0:01:33]} 33. Bg2 {[%emt 0:00:21]} Qg4 {[%emt 0:00:09]} 34. Bf3 {[%emt 0:02:40]} Qh3 {[%emt 0:02:06]} 35. Bg2 {[%emt 0:08:25]} Qg4 {[%emt 0:00:26]} 36. Bf3 {[%emt 0:00:04]} Qh3 {[%emt 0:00:07]} 37. Rf1 {[%emt 0:00:02]} Rf8 {[%emt 0:02:27]} 38. Qg2 {[%emt 0:07:09]} Qxg2+ {[%emt 0:00:24]} 39. Kxg2 {[%emt 0:00:06]} g6 {[%emt 0:02:12]} 40. Kf2 {[%emt 0:02:25]} Kg7 {[%emt 0:03:24]} 41. h4 {[%emt 0:31:29]} 1/2-1/2

[Event "Festival Groningen-A 2024"]
[Site "Groningen"]
[Date "2024.12.28"]
[Round "7.28"]
[White "Noordenbos, Daan"]
[Black "Duson, Robin"]
[Result "1/2-1/2"]
[ECO "C70"]
[WhiteElo "2130"]
[BlackElo "2159"]
[Annotator "RC"]
[PlyCount "121"]
[EventDate "2024.12.21"]
[EventType "swiss"]
[EventCountry "NED"]
[SourceTitle "playchess.com"]
[Source "ChessBase"]
[SourceQuality "1"]
[TimeControl "40/5400+30:1800+30"]

1. e4 {[%emt 0:00:04]} e5 {[%emt 0:00:07]} 2. Nf3 {[%emt 0:00:12]} Nc6 {[%emt 0:00:09]} 3. Bb5 {[%emt 0:00:11]} a6 {[%emt 0:00:35]} 4. Ba4 {[%emt 0:00:12]} Bc5 {[%emt 0:00:38]} 5. O-O {[%emt 0:01:03]} Nge7 {[%emt 0:00:44]} 6. Nxe5 {[%emt 0:08:59]} Nxe5 {[%emt 0:00:31]} 7. d4 {[%emt 0:00:07]} b5 {[%emt 0:00:26]} 8. Bb3 {[%emt 0:00:30]} Bxd4 {[%emt 0:00:52]} 9. Qxd4 {[%emt 0:00:05]} d6 {[%emt 0:00:21]} 10. f4 {[%emt 0:13:42]} c5 {[%emt 0:03:55]} 11. Qc3 {[%emt 0:11:32]} N5g6 {[%emt 0:09:09]} 12. Bd5 {[%emt 0:11:45]} Nxd5 {[%emt 0:02:41]} 13. exd5 {[%emt 0:00:02]} f6 {[%emt 0:04:43]} 14. h4 {[%emt 0:04:40]} O-O {[%emt 0:06:06]} 15. Qg3 {[%emt 0:07:13]} Ne7 {[%emt 0:02:09]} 16. b3 {[%emt 0:01:48]} Nxd5 {[%emt 0:04:30]} 17. Rd1 {[%emt 0:04:00]} Nb4 {[%emt 0:04:24]} 18. Na3 {[%emt 0:01:02]} Bb7 {[%emt 0:03:50]} 19. c3 {[%emt 0:01:33]} Nc6 {[%emt 0:01:20]} 20. Nc2 {[%emt 0:00:49]} Qd7 {[%emt 0:02:18]} 21. Be3 {[%emt 0:00:21]} Qf5 {[%emt 0:01:55]} 22. Rac1 {[%emt 0:02:19]} Rad8 {[%emt 0:02:58]} 23. Bf2 {[%emt 0:00:58]} Ne7 {[%emt 0:05:53]} 24. Ne3 {[%emt 0:01:34]} Qe4 {[%emt 0:00:11]} 25. Re1 {[%emt 0:02:28]} Qc6 {[%emt 0:01:37]} 26. h5 {[%emt 0:05:39]} d5 {[%emt 0:04:19]} 27. Ng4 {[%emt 0:09:42]} Nf5 {[%emt 0:00:57]} 28. Qf3 {[%emt 0:00:13]} Rfe8 {[%emt 0:06:56]} 29. Kh2 {[%emt 0:01:40]} Kf7 {[%emt 0:01:54]} 30. Ne3 {[%emt 0:04:55]} Nxe3 {[%emt 0:01:40]} 31. Rxe3 {[%emt 0:00:40]} Rxe3 {[%emt 0:01:21]} 32. Bxe3 {[%emt 0:00:22]} Qb6 {[%emt 0:04:31]} 33. Qg3 {[%emt 0:02:24]} d4 {[%emt 0:01:16]} 34. cxd4 {[%emt 0:00:02]} cxd4 {[%emt 0:00:08]} 35. Bd2 {[%emt 0:00:21]} Rd7 {[%emt 0:04:17]} 36. f5 {[%emt 0:02:53]} Be4 {[%emt 0:02:27]} 37. h6 {[%emt 0:01:04]} g6 {[%emt 0:08:33]} 38. fxg6+ {[%emt 0:00:01]} Bxg6 {[%emt 0:00:06]} 39. Rc8 {[%emt 0:00:16]} Qd6 {[%emt 0:01:55]} 40. Bf4 {[%emt 0:02:04]} Qd5 {[%emt 0:00:02]} 41. Rc7 {[%emt 0:16:31]} Rxc7 {[%emt 0:01:01]} 42. Bxc7 {[%emt 0:00:02]} d3 {[%emt 0:02:20]} 43. Ba5 {[%emt 0:00:25]} Qe5 {[%emt 0:04:26]} 44. Qxe5 {[%emt 0:04:43]} fxe5 {[%emt 0:00:03]} 45. Kg3 {[%emt 0:00:32]} Ke6 {[%emt 0:00:38]} 46. Kf3 {[%emt 0:00:19]} Kf5 {[%emt 0:01:31]} 47. Bd2 {[%emt 0:00:50]} Bh5+ {[%emt 0:00:28]} 48. Ke3 {[%emt 0:00:20]} Be2 {[%emt 0:00:51]} 49. Bc3 {[%emt 0:01:26]} e4 {[%emt 0:00:10]} 50. Bd2 {[%emt 0:01:18]} Bd1 {[%emt 0:00:26]} 51. Bc3 {[%emt 0:00:28]} Bc2 {[%emt 0:00:50]} 52. Bd2 {[%emt 0:00:16]} Ke5 {[%emt 0:00:40]} 53. Bc3+ {[%emt 0:00:53]} Kd5 {[%emt 0:00:18]} 54. Bd2 {[%emt 0:01:09]} Bb1 {[%emt 0:01:37]} 55. g4 {[%emt 0:04:18]} Ke5 {[%emt 0:00:20]} 56. Bc3+ {[%emt 0:00:14]} Ke6 {[%emt 0:00:28]} 57. a4 {[%emt 0:00:10]} Bc2 {[%emt 0:00:23]} 58. axb5 {[%emt 0:00:11]} axb5 {[%emt 0:00:02]} 59. b4 {[%emt 0:00:12]} Kf7 {[%emt 0:00:14]} 60. Bd2 {[%emt 0:00:20]} Bd1 {[%emt 0:01:51]} 61. Kd4 {[%emt 0:06:58]} 1/2-1/2

[Event "Festival Groningen-A 2024"]
[Site "Groningen"]
[Date "2024.12.28"]
[Round "7.29"]
[White "Ratsma, Midas"]
[Black "Hummel, Paul"]
[Result "1/2-1/2"]
[ECO "B13"]
[WhiteElo "2326"]
[BlackElo "2160"]
[Annotator "RC"]
[PlyCount "76"]
[EventDate "2024.12.21"]
[EventType "swiss"]
[EventCountry "NED"]
[SourceTitle "playchess.com"]
[Source "ChessBase"]
[SourceQuality "1"]
[TimeControl "40/5400+30:1800+30"]

1. e4 {[%emt 0:00:13]} c6 {[%emt 0:00:06]} 2. d4 {[%emt 0:00:17]} d5 {[%emt 0:00:05]} 3. exd5 {[%emt 0:01:00]} cxd5 {[%emt 0:00:08]} 4. c4 {[%emt 0:00:31]} Nf6 {[%emt 0:00:05]} 5. Nc3 {[%emt 0:00:39]} Nc6 {[%emt 0:00:20]} 6. Nf3 {[%emt 0:00:41]} Bg4 {[%emt 0:03:49]} 7. cxd5 {[%emt 0:00:30]} Nxd5 {[%emt 0:00:07]} 8. Qb3 {[%emt 0:00:40]} Bxf3 {[%emt 0:01:04]} 9. gxf3 {[%emt 0:00:17]} e6 {[%emt 0:04:01]} 10. Qxb7 {[%emt 0:00:31]} Nxd4 {[%emt 0:00:44]} 11. Bb5+ {[%emt 0:00:41]} Nxb5 {[%emt 0:00:05]} 12. Qc6+ {[%emt 0:00:23]} Ke7 {[%emt 0:01:03]} 13. Qc5+ {[%emt 0:00:45]} Ke8 {[%emt 0:11:10]} 14. Qxb5+ {[%emt 0:00:18]} Qd7 {[%emt 0:00:22]} 15. Nxd5 {[%emt 0:00:42]} exd5 {[%emt 0:00:23]} 16. Qd3 {[%emt 0:00:43]} Bb4+ {[%emt 0:10:51]} 17. Kf1 {[%emt 0:00:52]} f6 {[%emt 0:04:48]} 18. Be3 {[%emt 0:13:19]} Kf7 {[%emt 0:10:48]} 19. Rd1 {[%emt 0:00:42]} Rad8 {[%emt 0:10:41]} 20. Rg1 {[%emt 0:13:54]} Qh3+ {[%emt 0:05:40]} 21. Ke2 {[%emt 0:01:25]} Rhe8 {[%emt 0:09:21]} 22. Qb3 {[%emt 0:06:24]} Bd6 {[%emt 0:07:24]} 23. Rxd5 {[%emt 0:20:34]} Kf8 {[%emt 0:02:01]} 24. Rg4 {[%emt 0:17:15]} Rb8 {[%emt 0:03:59]} 25. Qc2 {[%emt 0:03:53]} Be5 {[%emt 0:02:12]} 26. Qc5+ {[%emt 0:06:34]} Kg8 {[%emt 0:01:52]} 27. b3 {[%emt 0:02:20]} Qxh2 {[%emt 0:01:52]} 28. Qc4 {[%emt 0:03:35]} Kh8 {[%emt 0:02:27]} 29. Rh4 {[%emt 0:00:24]} Qg1 {[%emt 0:00:08]} 30. Qe4 {[%emt 0:00:34]} h6 {[%emt 0:03:47]} 31. Rd7 {[%emt 0:00:23]} f5 {[%emt 0:02:28]} 32. Qxf5 {[%emt 0:00:41]} Rb6 {[%emt 0:00:22]} 33. Bxb6 {[%emt 0:04:32]} Bf4+ {[%emt 0:00:42]} 34. Be3 {[%emt 0:00:31]} Rxe3+ {[%emt 0:00:04]} 35. fxe3 {[%emt 0:00:16]} Qxe3+ {[%emt 0:00:08]} 36. Kd1 {[%emt 0:00:48]} Qc1+ {[%emt 0:00:16]} 37. Ke2 {[%emt 0:00:10]} Qe3+ {[%emt 0:00:06]} 38. Kd1 {[%emt 0:00:26]} Qc1+ {[%emt 0:00:03]} 1/2-1/2

[Event "Festival Groningen-A 2024"]
[Site "Groningen"]
[Date "2024.12.28"]
[Round "7.30"]
[White "Wouters, Casper"]
[Black "Schilstra, Laurens"]
[Result "1-0"]
[ECO "B04"]
[WhiteElo "2110"]
[BlackElo "2150"]
[Annotator "RC"]
[PlyCount "87"]
[EventDate "2024.12.21"]
[EventType "swiss"]
[EventCountry "NED"]
[SourceTitle "playchess.com"]
[Source "ChessBase"]
[SourceQuality "1"]
[TimeControl "40/5400+30:1800+30"]

1. e4 {[%emt 0:00:03]} Nf6 {[%emt 0:00:17]} 2. e5 {[%emt 0:00:09]} Nd5 {[%emt 0:00:04]} 3. d4 {[%emt 0:00:10]} d6 {[%emt 0:00:06]} 4. Nf3 {[%emt 0:00:12]} c6 {[%emt 0:00:13]} 5. c4 {[%emt 0:05:26]} Nc7 {[%emt 0:02:59]} 6. Be2 {[%emt 0:02:21]} g6 {[%emt 0:01:31]} 7. O-O {[%emt 0:07:00]} Bg7 {[%emt 0:00:06]} 8. Nc3 {[%emt 0:01:34]} O-O {[%emt 0:00:11]} 9. exd6 {[%emt 0:05:17]} Qxd6 {[%emt 0:01:49]} 10. h3 {[%emt 0:09:31]} Ne6 {[%emt 0:00:32]} 11. Ne4 {[%emt 0:01:34]} Qc7 {[%emt 0:00:17]} 12. Nc3 {[%emt 0:18:41]} Rd8 {[%emt 0:02:07]} 13. Be3 {[%emt 0:02:22]} Nf4 {[%emt 0:00:44]} 14. Re1 {[%emt 0:04:46]} Nxe2+ {[%emt 0:02:24]} 15. Qxe2 {[%emt 0:00:22]} Bf5 {[%emt 0:00:14]} 16. Bg5 {[%emt 0:02:16]} Re8 {[%emt 0:01:18]} 17. Bh4 {[%emt 0:01:43]} Nd7 {[%emt 1:24:08]} 18. g4 {[%emt 0:03:12]} e5 {[%emt 0:00:00]} 19. d5 {[%emt 0:10:07]} e4 {[%emt 0:00:00]} 20. Nh2 {[%emt 0:01:34]} Be5 {[%emt 0:00:00]} 21. Bg3 {[%emt 0:02:57]} Nc5 {[%emt 0:00:00]} 22. Bxe5 {[%emt 0:02:45]} Rxe5 {[%emt 0:00:00]} 23. gxf5 {[%emt 0:00:27]} Nd3 {[%emt 0:00:00]} 24. Ng4 {[%emt 0:07:59]} Rxf5 {[%emt 0:00:00]} 25. Nxe4 {[%emt 0:02:04]} Nxe1 {[%emt 0:00:00]} 26. Nh6+ {[%emt 0:00:47]} Kh8 {[%emt 0:00:00]} 27. Nxf5 {[%emt 0:04:43]} gxf5 {[%emt 0:00:00]} 28. d6 {[%emt 0:01:17]} Qd7 {[%emt 0:00:00]} 29. Qxe1 {[%emt 0:02:46]} fxe4 {[%emt 0:00:00]} 30. Qc3+ {[%emt 0:00:04]} f6 {[%emt 0:00:00]} 31. Qxf6+ {[%emt 0:00:09]} Qg7+ {[%emt 0:00:00]} 32. Qxg7+ {[%emt 0:00:02]} Kxg7 {[%emt 0:00:00]} 33. Re1 {[%emt 0:01:09]} Re8 {[%emt 0:00:00]} 34. c5 {[%emt 0:01:17]} Kf6 {[%emt 0:00:00]} 35. Kf1 {[%emt 0:00:38]} Kf5 {[%emt 0:00:00]} 36. f3 {[%emt 0:00:18]} e3 {[%emt 0:00:00]} 37. Ke2 {[%emt 0:00:13]} h5 {[%emt 0:00:00]} 38. Rg1 {[%emt 0:00:17]} Ke5 {[%emt 0:00:00]} 39. Rg5+ {[%emt 0:00:47]} Kd4 {[%emt 0:00:00]} 40. b4 {[%emt 0:00:31]} Kc4 {[%emt 0:00:00]} 41. a3 {[%emt 0:01:11]} Kb3 {[%emt 0:00:00]} 42. Rg7 {[%emt 0:00:50]} Rb8 {[%emt 0:00:00]} 43. Rc7 {[%emt 0:01:25]} b6 {[%emt 0:00:00]} 44. b5 {[%emt 0:05:18]} 1-0